[Event "Late-Titled-Tuesday-Blitz-May-14-2024"]
[Site "Chess.com"]
[Date "2024.05.14"]
[Round "2"]
[White "dropstoneDP"]
[Black "PabloZarnicki"]
[Result "1-0"]
[WhiteElo "2951"]
[BlackElo "2553"]
[TimeControl "180+1"]
[EndTime "14:18:04 PDT"]
[Termination "dropstoneDP won on time"]

1. e4 {[%clk 0:03:00.9]} 1... e5 {[%clk 0:02:59.4]} 2. Nf3 {[%clk 0:02:59.2]}
2... Nf6 {[%clk 0:02:59.6]} 3. Nxe5 {[%clk 0:02:57.9]} 3... d6 {[%clk 0:03:00]}
4. Nf3 {[%clk 0:02:58]} 4... Nxe4 {[%clk 0:03:00.4]} 5. Qe2 {[%clk 0:02:56.3]}
5... Qe7 {[%clk 0:03:00]} 6. d3 {[%clk 0:02:56.8]} 6... Nf6 {[%clk 0:03:00.6]}
7. Qxe7+ {[%clk 0:02:57.2]} 7... Bxe7 {[%clk 0:03:00.6]} 8. g3 {[%clk
0:02:58.1]} 8... b6 {[%clk 0:02:57.2]} 9. Bg2 {[%clk 0:02:57.1]} 9... Bb7 {[%clk
0:02:57.6]} 10. O-O {[%clk 0:02:57.7]} 10... O-O {[%clk 0:02:57.9]} 11. Re1
{[%clk 0:02:58.2]} 11... Re8 {[%clk 0:02:58.1]} 12. Nd4 {[%clk 0:02:57.8]} 12...
Bxg2 {[%clk 0:02:57.4]} 13. Kxg2 {[%clk 0:02:58.7]} 13... c5 {[%clk 0:02:46.8]}
14. Nb5 {[%clk 0:02:57.7]} 14... Na6 {[%clk 0:02:41.4]} 15. Bf4 {[%clk
0:02:44.8]} 15... Bf8 {[%clk 0:02:39.1]} 16. N1a3 {[%clk 0:02:33.9]} 16... d5
{[%clk 0:02:29.4]} 17. Nc7 {[%clk 0:02:31.3]} 17... Nxc7 {[%clk 0:02:29.2]} 18.
Bxc7 {[%clk 0:02:31]} 18... Rac8 {[%clk 0:02:18.6]} 19. Bf4 {[%clk 0:02:26.5]}
19... a6 {[%clk 0:02:18.9]} 20. c4 {[%clk 0:02:24]} 20... g6 {[%clk 0:02:09.4]}
21. Nc2 {[%clk 0:02:20.1]} 21... Nh5 {[%clk 0:02:01.6]} 22. Be5 {[%clk
0:02:15.8]} 22... dxc4 {[%clk 0:01:43.1]} 23. dxc4 {[%clk 0:02:14.9]} 23... Bg7
{[%clk 0:01:43.8]} 24. Bxg7 {[%clk 0:02:14.2]} 24... Nxg7 {[%clk 0:01:43.8]} 25.
Ne3 {[%clk 0:02:14.4]} 25... Re6 {[%clk 0:01:24]} 26. Nd5 {[%clk 0:02:14]} 26...
Rce8 {[%clk 0:01:23.3]} 27. Rxe6 {[%clk 0:02:10.1]} 27... Rxe6 {[%clk
0:01:24.2]} 28. g4 {[%clk 0:02:00.3]} 28... h6 {[%clk 0:01:21.6]} 29. Rb1 {[%clk
0:01:53.5]} 29... Ne8 {[%clk 0:01:21.2]} 30. b4 {[%clk 0:01:53.4]} 30... Kg7
{[%clk 0:01:01.4]} 31. bxc5 {[%clk 0:01:51.7]} 31... bxc5 {[%clk 0:01:02.3]} 32.
Rb6 {[%clk 0:01:39.6]} 32... Rxb6 {[%clk 0:00:57.7]} 33. Nxb6 {[%clk 0:01:40.5]}
33... Nd6 {[%clk 0:00:57.3]} 34. Kf3 {[%clk 0:01:39]} 34... Kf6 {[%clk 0:00:56]}
35. h3 {[%clk 0:01:32]} 35... Ke5 {[%clk 0:00:50.7]} 36. Ke3 {[%clk 0:01:31.9]}
36... g5 {[%clk 0:00:51.1]} 37. Nd7+ {[%clk 0:01:30.3]} 37... Ke6 {[%clk
0:00:49.2]} 38. Nxc5+ {[%clk 0:01:30.7]} 38... Ke5 {[%clk 0:00:49.8]} 39. Nd3+
{[%clk 0:01:30.5]} 39... Ke6 {[%clk 0:00:50.2]} 40. Kd4 {[%clk 0:01:31]} 40...
f5 {[%clk 0:00:49]} 41. f3 {[%clk 0:01:31.1]} 41... fxg4 {[%clk 0:00:47.8]} 42.
fxg4 {[%clk 0:01:32]} 42... Ne8 {[%clk 0:00:45]} 43. Nc5+ {[%clk 0:01:32.1]}
43... Kd6 {[%clk 0:00:42.7]} 44. Nxa6 {[%clk 0:01:28.9]} 44... Ng7 {[%clk
0:00:42.6]} 45. Nc5 {[%clk 0:01:27.7]} 45... Kc6 {[%clk 0:00:41]} 46. Nd3 {[%clk
0:01:24.8]} 46... h5 {[%clk 0:00:39.3]} 47. Ke5 {[%clk 0:01:24.5]} 47... hxg4
{[%clk 0:00:39.2]} 48. hxg4 {[%clk 0:01:25.4]} 48... Ne8 {[%clk 0:00:38.9]} 49.
Kf5 {[%clk 0:01:09.7]} 49... Nd6+ {[%clk 0:00:38.4]} 50. Kxg5 {[%clk 0:01:09.8]}
50... Nxc4 {[%clk 0:00:39.1]} 51. Kf6 {[%clk 0:01:10.4]} 51... Ne3 {[%clk
0:00:28.5]} 52. g5 {[%clk 0:01:10.1]} 52... Nd5+ {[%clk 0:00:28.7]} 53. Kf7
{[%clk 0:01:09.7]} 1-0

[Event "Late-Titled-Tuesday-Blitz-May-14-2024"]
[Site "Chess.com"]
[Date "2024.05.14"]
[Round "2"]
[White "Boninknights"]
[Black "GoltsevDmitry2000"]
[Result "0-1"]
[WhiteElo "2390"]
[BlackElo "2738"]
[TimeControl "180+1"]
[EndTime "14:18:05 PDT"]
[Termination "GoltsevDmitry2000 won by resignation"]

1. d4 {[%clk 0:02:58.8]} 1... e6 {[%clk 0:02:59.7]} 2. Nf3 {[%clk 0:02:58.7]}
2... Nf6 {[%clk 0:02:58.5]} 3. c4 {[%clk 0:02:57.9]} 3... d5 {[%clk 0:02:58.7]}
4. Nc3 {[%clk 0:02:56.5]} 4... dxc4 {[%clk 0:02:59.2]} 5. e3 {[%clk 0:02:53.6]}
5... c5 {[%clk 0:02:59.3]} 6. Bxc4 {[%clk 0:02:51.5]} 6... Nc6 {[%clk
0:02:59.2]} 7. O-O {[%clk 0:02:50]} 7... a6 {[%clk 0:02:54.5]} 8. dxc5 {[%clk
0:02:48.1]} 8... Qxd1 {[%clk 0:02:53.8]} 9. Rxd1 {[%clk 0:02:47.8]} 9... Bxc5
{[%clk 0:02:54.5]} 10. a3 {[%clk 0:02:46.3]} 10... b5 {[%clk 0:02:53]} 11. Be2
{[%clk 0:02:44.7]} 11... Bb7 {[%clk 0:02:52.2]} 12. b4 {[%clk 0:02:43.5]} 12...
Be7 {[%clk 0:02:48.2]} 13. Bb2 {[%clk 0:02:42.3]} 13... O-O {[%clk 0:02:47.5]}
14. Rac1 {[%clk 0:02:40.4]} 14... Rfd8 {[%clk 0:02:46.5]} 15. Rxd8+ {[%clk
0:02:36.9]} 15... Rxd8 {[%clk 0:02:47.4]} 16. Rd1 {[%clk 0:02:35.8]} 16... Rxd1+
{[%clk 0:02:37.1]} 17. Bxd1 {[%clk 0:02:35.4]} 17... Nb8 {[%clk 0:02:32.6]} 18.
Nd4 {[%clk 0:02:26.6]} 18... Nfd7 {[%clk 0:02:23.2]} 19. Bf3 {[%clk 0:02:23.5]}
19... Bxf3 {[%clk 0:02:22.3]} 20. gxf3 {[%clk 0:02:17.5]} 20... Nb6 {[%clk
0:02:19.4]} 21. Nb3 {[%clk 0:02:11.1]} 21... Nc4 {[%clk 0:02:17]} 22. Bc1 {[%clk
0:02:10.6]} 22... Nd7 {[%clk 0:02:12.9]} 23. Kf1 {[%clk 0:02:06.5]} 23... f5
{[%clk 0:01:55.1]} 24. Ke2 {[%clk 0:02:01.7]} 24... Bf6 {[%clk 0:01:53.5]} 25.
Nb1 {[%clk 0:01:49.4]} 25... Kf7 {[%clk 0:01:47.9]} 26. N1d2 {[%clk 0:01:47.1]}
26... Ncb6 {[%clk 0:01:43.5]} 27. Kd3 {[%clk 0:01:36]} 27... Na4 {[%clk
0:01:27.9]} 28. f4 {[%clk 0:01:27.4]} 28... Ke7 {[%clk 0:01:22.4]} 29. f3 {[%clk
0:01:25.9]} 29... Ndb6 {[%clk 0:01:12.3]} 30. e4 {[%clk 0:01:17.3]} 30... Kd7
{[%clk 0:01:12.1]} 31. e5 {[%clk 0:01:15.3]} 31... Be7 {[%clk 0:01:09.4]} 32.
Nd4 {[%clk 0:01:13.7]} 32... Nd5 {[%clk 0:01:07.5]} 33. N2b3 {[%clk 0:01:08.3]}
33... g6 {[%clk 0:00:59.2]} 34. h3 {[%clk 0:01:06.1]} 34... Bf8 {[%clk
0:00:59.1]} 35. Bd2 {[%clk 0:01:01.6]} 35... Nb2+ {[%clk 0:00:57.5]} 36. Kc2
{[%clk 0:00:56.3]} 36... Nc4 {[%clk 0:00:57.6]} 37. Nc5+ {[%clk 0:00:53.4]}
37... Bxc5 {[%clk 0:00:56.1]} 38. bxc5 {[%clk 0:00:53]} 38... Nxa3+ {[%clk
0:00:56.3]} 39. Kb3 {[%clk 0:00:52.2]} 39... Nc4 {[%clk 0:00:54.9]} 40. c6+
{[%clk 0:00:47.9]} 40... Kc7 {[%clk 0:00:53.8]} 41. Nxe6+ {[%clk 0:00:44.5]}
41... Kxc6 {[%clk 0:00:53.9]} 42. Nd4+ {[%clk 0:00:41.4]} 42... Kc5 {[%clk
0:00:53.3]} 43. Ne6+ {[%clk 0:00:40.9]} 43... Kb6 {[%clk 0:00:53.9]} 44. Bb4
{[%clk 0:00:36.9]} 44... a5 {[%clk 0:00:52.4]} 45. Bc5+ {[%clk 0:00:35.2]} 45...
Kc6 {[%clk 0:00:52.9]} 46. Bf2 {[%clk 0:00:31.2]} 46... a4+ {[%clk 0:00:52.9]}
47. Kc2 {[%clk 0:00:28.2]} 47... b4 {[%clk 0:00:50.8]} 48. Nd4+ {[%clk
0:00:25.5]} 48... Kd7 {[%clk 0:00:50.4]} 49. e6+ {[%clk 0:00:22.4]} 49... Ke8
{[%clk 0:00:50.6]} 50. Bh4 {[%clk 0:00:20.5]} 50... b3+ {[%clk 0:00:49.9]} 51.
Kb1 {[%clk 0:00:19]} 51... Nc3+ {[%clk 0:00:48.1]} 0-1

[Event "Late-Titled-Tuesday-Blitz-May-14-2024"]
[Site "Chess.com"]
[Date "2024.05.14"]
[Round "2"]
[White "jeetjain"]
[Black "Arystanner"]
[Result "0-1"]
[WhiteElo "2576"]
[BlackElo "2840"]
[TimeControl "180+1"]
[EndTime "14:18:15 PDT"]
[Termination "Arystanner won by resignation"]

1. Nf3 {[%clk 0:03:00.9]} 1... d5 {[%clk 0:03:00.1]} 2. b3 {[%clk 0:03:01.1]}
2... Nf6 {[%clk 0:02:59.9]} 3. Bb2 {[%clk 0:03:01.5]} 3... e6 {[%clk 0:03:00.6]}
4. e3 {[%clk 0:03:02]} 4... Bd6 {[%clk 0:03:01.2]} 5. c4 {[%clk 0:03:02.2]} 5...
O-O {[%clk 0:03:01.9]} 6. Nc3 {[%clk 0:03:01.2]} 6... c5 {[%clk 0:03:02]} 7.
cxd5 {[%clk 0:03:00.6]} 7... exd5 {[%clk 0:03:02.9]} 8. d4 {[%clk 0:03:00.9]}
8... cxd4 {[%clk 0:03:03.6]} 9. Nxd4 {[%clk 0:03:00.7]} 9... Nc6 {[%clk
0:03:04.4]} 10. Be2 {[%clk 0:03:00.5]} 10... Nxd4 {[%clk 0:03:05]} 11. Qxd4
{[%clk 0:03:01]} 11... Re8 {[%clk 0:03:05.6]} 12. O-O {[%clk 0:03:00.9]} 12...
Be5 {[%clk 0:03:05.8]} 13. Qd3 {[%clk 0:02:56.9]} 13... Be6 {[%clk 0:02:59.2]}
14. Rfd1 {[%clk 0:02:55.2]} 14... Rc8 {[%clk 0:02:59.2]} 15. Rab1 {[%clk
0:02:31.7]} 15... Qa5 {[%clk 0:02:42.5]} 16. Nb5 {[%clk 0:02:28.5]} 16... Bxb2
{[%clk 0:02:22]} 17. Rxb2 {[%clk 0:02:29.4]} 17... Red8 {[%clk 0:02:21.8]} 18.
Nd4 {[%clk 0:02:20]} 18... Bd7 {[%clk 0:02:17.1]} 19. b4 {[%clk 0:02:07.6]}
19... Qb6 {[%clk 0:02:15.4]} 20. Bf3 {[%clk 0:01:55.4]} 20... g6 {[%clk
0:02:14.6]} 21. a3 {[%clk 0:01:54.6]} 21... Kg7 {[%clk 0:02:08]} 22. h3 {[%clk
0:01:53.6]} 22... h5 {[%clk 0:02:07.9]} 23. Ne2 {[%clk 0:01:37]} 23... Ba4
{[%clk 0:01:57.1]} 24. Rc1 {[%clk 0:01:25.5]} 24... Rxc1+ {[%clk 0:01:56.3]} 25.
Nxc1 {[%clk 0:01:26.4]} 25... d4 {[%clk 0:01:56.6]} 26. exd4 {[%clk 0:01:23.2]}
26... Rxd4 {[%clk 0:01:56.5]} 27. Qe3 {[%clk 0:01:13.4]} 27... Qd6 {[%clk
0:01:56]} 28. Na2 {[%clk 0:00:57.8]} 28... Bc6 {[%clk 0:01:54.8]} 29. Rb1 {[%clk
0:00:46.6]} 29... Rd3 {[%clk 0:01:53.4]} 30. Qe2 {[%clk 0:00:36.6]} 30... Bxf3
{[%clk 0:01:47.5]} 31. gxf3 {[%clk 0:00:37.5]} 31... Rxa3 {[%clk 0:01:47.7]} 32.
b5 {[%clk 0:00:28.5]} 32... Qd5 {[%clk 0:01:42.3]} 33. Nb4 {[%clk 0:00:28.1]}
33... Qxf3 {[%clk 0:01:42.5]} 34. Qxf3 {[%clk 0:00:28]} 34... Rxf3 {[%clk
0:01:43.4]} 35. Kg2 {[%clk 0:00:28.9]} 35... Rf5 {[%clk 0:01:43.2]} 36. Nd3
{[%clk 0:00:27.2]} 36... Nd5 {[%clk 0:01:43.6]} 37. Ra1 {[%clk 0:00:24]} 37...
Nc7 {[%clk 0:01:31.3]} 38. Rxa7 {[%clk 0:00:23.4]} 38... Rxb5 {[%clk 0:01:31.9]}
39. Nf4 {[%clk 0:00:20.2]} 39... Ne6 {[%clk 0:01:30.3]} 40. Nd3 {[%clk
0:00:16.5]} 40... Rb3 {[%clk 0:01:30.3]} 41. Ne5 {[%clk 0:00:15.4]} 41... Nf4+
{[%clk 0:01:30.4]} 42. Kg1 {[%clk 0:00:10.6]} 42... Nxh3+ {[%clk 0:01:30.8]} 43.
Kf1 {[%clk 0:00:10.5]} 43... Nf4 {[%clk 0:01:31.2]} 44. Ke1 {[%clk 0:00:10.4]}
44... h4 {[%clk 0:01:27.3]} 45. Ra4 {[%clk 0:00:08.4]} 45... g5 {[%clk
0:01:27.4]} 46. Kd2 {[%clk 0:00:06.9]} 46... h3 {[%clk 0:01:27.5]} 47. Ra1
{[%clk 0:00:06.7]} 47... f6 {[%clk 0:01:26.8]} 48. Ng4 {[%clk 0:00:06]} 48...
Kg6 {[%clk 0:01:25.6]} 49. Rh1 {[%clk 0:00:04.8]} 49... f5 {[%clk 0:01:24.6]}
50. Ne5+ {[%clk 0:00:04.4]} 50... Kf6 {[%clk 0:01:25.3]} 51. Nd7+ {[%clk
0:00:04.5]} 51... Ke7 {[%clk 0:01:26]} 52. Nc5 {[%clk 0:00:05.4]} 52... Rb2+
{[%clk 0:01:26.4]} 53. Ke3 {[%clk 0:00:05.3]} 53... b6 {[%clk 0:01:25.9]} 54.
Na4 {[%clk 0:00:03.2]} 54... Rb3+ {[%clk 0:01:25.9]} 55. Kd2 {[%clk 0:00:03.3]}
55... Kf6 {[%clk 0:01:23.3]} 56. Nc3 {[%clk 0:00:03.3]} 56... g4 {[%clk
0:01:23.5]} 57. Nd1 {[%clk 0:00:03.2]} 57... Kg5 {[%clk 0:01:23.4]} 58. Ne3
{[%clk 0:00:03.5]} 58... Rb2+ {[%clk 0:01:24.1]} 59. Ke1 {[%clk 0:00:03.6]}
59... Rb1+ {[%clk 0:01:24]} 60. Nd1 {[%clk 0:00:04.3]} 60... b5 {[%clk
0:01:24.1]} 61. Kd2 {[%clk 0:00:04.6]} 61... b4 {[%clk 0:01:24.3]} 62. f3 {[%clk
0:00:05]} 62... g3 {[%clk 0:01:24.3]} 63. Rg1 {[%clk 0:00:04.2]} 63... g2 {[%clk
0:01:24.4]} 64. Kc2 {[%clk 0:00:03.4]} 64... Ra1 {[%clk 0:01:24.4]} 65. Kb2
{[%clk 0:00:04]} 65... Rxd1 {[%clk 0:01:24.3]} 66. Rxd1 {[%clk 0:00:04.9]} 66...
h2 {[%clk 0:01:25]} 0-1

[Event "Late-Titled-Tuesday-Blitz-May-14-2024"]
[Site "Chess.com"]
[Date "2024.05.14"]
[Round "2"]
[White "Sanan_Sjugirov"]
[Black "Flawless_Fighter"]
[Result "1-0"]
[WhiteElo "3043"]
[BlackElo "2669"]
[TimeControl "180+1"]
[EndTime "14:18:18 PDT"]
[Termination "Sanan_Sjugirov won by resignation"]

1. e4 {[%clk 0:03:00.9]} 1... c6 {[%clk 0:02:56.7]} 2. d4 {[%clk 0:03:00.4]}
2... d5 {[%clk 0:02:57.6]} 3. Nc3 {[%clk 0:03:01]} 3... dxe4 {[%clk 0:02:57.9]}
4. Nxe4 {[%clk 0:03:01.9]} 4... Nf6 {[%clk 0:02:58.5]} 5. Nxf6+ {[%clk
0:03:02.5]} 5... exf6 {[%clk 0:02:59.4]} 6. c3 {[%clk 0:03:03.2]} 6... Bd6
{[%clk 0:02:59.4]} 7. Bd3 {[%clk 0:03:03.9]} 7... O-O {[%clk 0:02:59.8]} 8. Ne2
{[%clk 0:03:04.5]} 8... Re8 {[%clk 0:03:00.5]} 9. O-O {[%clk 0:03:05.2]} 9... h5
{[%clk 0:03:01]} 10. Ng3 {[%clk 0:03:00.5]} 10... g6 {[%clk 0:02:59.9]} 11. Ne4
{[%clk 0:02:47.7]} 11... Be7 {[%clk 0:02:57.1]} 12. Bf4 {[%clk 0:02:42.2]} 12...
f5 {[%clk 0:02:55.2]} 13. Nd2 {[%clk 0:02:42.6]} 13... Be6 {[%clk 0:02:53.9]}
14. Re1 {[%clk 0:02:38.4]} 14... Nd7 {[%clk 0:02:53.8]} 15. Nf3 {[%clk
0:02:27.9]} 15... Nf6 {[%clk 0:02:46.9]} 16. Ng5 {[%clk 0:02:25.8]} 16... Nd5
{[%clk 0:02:25.3]} 17. Nxe6 {[%clk 0:02:22.3]} 17... fxe6 {[%clk 0:02:25.6]} 18.
Be5 {[%clk 0:02:19.5]} 18... Bd6 {[%clk 0:02:23.5]} 19. Qf3 {[%clk 0:02:17]}
19... Bxe5 {[%clk 0:02:19.7]} 20. Rxe5 {[%clk 0:02:17.9]} 20... Qf6 {[%clk
0:02:12.6]} 21. Rae1 {[%clk 0:02:17.5]} 21... Re7 {[%clk 0:02:13.3]} 22. a4
{[%clk 0:01:54.2]} 22... a5 {[%clk 0:02:11.1]} 23. h3 {[%clk 0:01:46.1]} 23...
Kg7 {[%clk 0:02:10.7]} 24. Bc4 {[%clk 0:01:41.9]} 24... Rae8 {[%clk 0:02:09.3]}
25. Bb3 {[%clk 0:01:35.9]} 25... Kf7 {[%clk 0:02:02.2]} 26. Qg3 {[%clk
0:01:22.8]} 26... Kg7 {[%clk 0:02:01.4]} 27. Rd1 {[%clk 0:01:15]} 27... b6
{[%clk 0:01:59.2]} 28. Rde1 {[%clk 0:01:13.5]} 28... Nc7 {[%clk 0:01:54.7]} 29.
Qf3 {[%clk 0:01:11.6]} 29... Nd5 {[%clk 0:01:54.6]} 30. Bc4 {[%clk 0:01:08.4]}
30... Kh7 {[%clk 0:01:48.8]} 31. Kh2 {[%clk 0:01:05.3]} 31... Kg7 {[%clk
0:01:49.1]} 32. Qe2 {[%clk 0:01:05]} 32... Nc7 {[%clk 0:01:47.2]} 33. Qd2 {[%clk
0:00:58.5]} 33... h4 {[%clk 0:01:46.3]} 34. Be2 {[%clk 0:00:58.5]} 34... c5
{[%clk 0:01:37.9]} 35. Bc4 {[%clk 0:00:52.9]} 35... Rd8 {[%clk 0:01:36]} 36. Qe3
{[%clk 0:00:27.8]} 36... cxd4 {[%clk 0:01:36]} 37. cxd4 {[%clk 0:00:28.7]} 37...
Red7 {[%clk 0:01:36.5]} 38. Bxe6 {[%clk 0:00:27]} 38... Rxd4 {[%clk 0:01:36]}
39. Bb3 {[%clk 0:00:26.1]} 39... f4 {[%clk 0:00:52.2]} 40. Re7+ {[%clk
0:00:25.8]} 40... Kh6 {[%clk 0:00:52.9]} 41. Qc3 {[%clk 0:00:24.7]} 41... Nd5
{[%clk 0:00:41.9]} 42. Bxd5 {[%clk 0:00:24.3]} 42... R8xd5 {[%clk 0:00:41.6]}
43. R1e6 {[%clk 0:00:24.1]} 43... Qg5 {[%clk 0:00:37.5]} 44. Qc7 {[%clk
0:00:21.4]} 44... Qf5 {[%clk 0:00:18.9]} 45. Rh7+ {[%clk 0:00:21.1]} 45... Kg5
{[%clk 0:00:19.1]} 46. Qe7+ {[%clk 0:00:21.7]} 1-0

[Event "Late-Titled-Tuesday-Blitz-May-14-2024"]
[Site "Chess.com"]
[Date "2024.05.14"]
[Round "2"]
[White "Javadovvv"]
[Black "MaxLeto"]
[Result "0-1"]
[WhiteElo "2579"]
[BlackElo "2383"]
[TimeControl "180+1"]
[EndTime "14:18:18 PDT"]
[Termination "MaxLeto won by resignation"]

1. d4 {[%clk 0:02:59.7]} 1... d5 {[%clk 0:02:57.4]} 2. Nf3 {[%clk 0:03:00.2]}
2... Nf6 {[%clk 0:02:57.4]} 3. Bf4 {[%clk 0:03:00.8]} 3... c5 {[%clk 0:02:56.4]}
4. e3 {[%clk 0:03:01.2]} 4... Nc6 {[%clk 0:02:56.8]} 5. c3 {[%clk 0:03:01.6]}
5... Qb6 {[%clk 0:02:56.1]} 6. Qc2 {[%clk 0:03:01.8]} 6... Bf5 {[%clk
0:02:52.2]} 7. dxc5 {[%clk 0:03:01.7]} 7... Bxc2 {[%clk 0:02:52.7]} 8. cxb6
{[%clk 0:03:01.7]} 8... Bxb1 {[%clk 0:02:47.1]} 9. Rxb1 {[%clk 0:03:02.6]} 9...
axb6 {[%clk 0:02:47.5]} 10. a3 {[%clk 0:03:02.7]} 10... e6 {[%clk 0:02:46.3]}
11. Be2 {[%clk 0:03:02.1]} 11... Be7 {[%clk 0:02:45.3]} 12. O-O {[%clk
0:03:02.3]} 12... O-O {[%clk 0:02:35.2]} 13. h3 {[%clk 0:03:02]} 13... Ne4
{[%clk 0:02:33.4]} 14. Rbd1 {[%clk 0:03:01.8]} 14... Na5 {[%clk 0:01:17.4]} 15.
Nd4 {[%clk 0:02:48.5]} 15... Rfc8 {[%clk 0:01:10.2]} 16. Rfe1 {[%clk 0:02:38.7]}
16... Nc4 {[%clk 0:00:59.4]} 17. Bxc4 {[%clk 0:02:38.3]} 17... Rxc4 {[%clk
0:01:00.3]} 18. Bc7 {[%clk 0:02:34.5]} 18... Rxc7 {[%clk 0:00:58.2]} 19. Nb5
{[%clk 0:02:31.6]} 19... Rc5 {[%clk 0:00:55.8]} 20. Nd4 {[%clk 0:02:31.6]} 20...
Bf6 {[%clk 0:00:53]} 21. Nf3 {[%clk 0:02:31.6]} 21... Kf8 {[%clk 0:00:49.3]} 22.
g4 {[%clk 0:02:31.5]} 22... Rca5 {[%clk 0:00:47.6]} 23. Re2 {[%clk 0:02:30.6]}
23... Ke8 {[%clk 0:00:45.5]} 24. Rc2 {[%clk 0:02:29.4]} 24... Nd6 {[%clk
0:00:40.9]} 25. h4 {[%clk 0:02:20.9]} 25... h6 {[%clk 0:00:38.2]} 26. Kg2 {[%clk
0:02:20.4]} 26... Be7 {[%clk 0:00:34.9]} 27. Rh1 {[%clk 0:02:19.5]} 27... f6
{[%clk 0:00:34]} 28. Nd4 {[%clk 0:02:08.5]} 28... Kf7 {[%clk 0:00:32.2]} 29. Rd1
{[%clk 0:02:06.9]} 29... Nc4 {[%clk 0:00:31]} 30. Re1 {[%clk 0:02:04.1]} 30...
Rc8 {[%clk 0:00:29.3]} 31. Ree2 {[%clk 0:02:02.3]} 31... e5 {[%clk 0:00:28]} 32.
Nf5 {[%clk 0:02:01.4]} 32... Bf8 {[%clk 0:00:28.4]} 33. f3 {[%clk 0:01:57.1]}
33... g6 {[%clk 0:00:27.1]} 34. Ng3 {[%clk 0:01:57.4]} 34... Rb5 {[%clk
0:00:22.3]} 35. h5 {[%clk 0:01:56.5]} 35... gxh5 {[%clk 0:00:17]} 36. Nxh5
{[%clk 0:01:56]} 36... Bc5 {[%clk 0:00:15.6]} 37. e4 {[%clk 0:01:40.8]} 37...
Ne3+ {[%clk 0:00:14.8]} 38. Rxe3 {[%clk 0:01:41.1]} 38... Bxe3 {[%clk
0:00:15.7]} 39. Ng3 {[%clk 0:01:41.7]} 39... d4 {[%clk 0:00:13.9]} 40. c4 {[%clk
0:01:42.1]} 40... Rbc5 {[%clk 0:00:13.3]} 41. b3 {[%clk 0:01:42.1]} 41... b5
{[%clk 0:00:13.2]} 42. Nf5 {[%clk 0:01:41.1]} 42... R8c6 {[%clk 0:00:11.1]} 43.
Rb2 {[%clk 0:01:36.5]} 43... bxc4 {[%clk 0:00:09.6]} 44. bxc4 {[%clk 0:01:37.4]}
44... b6 {[%clk 0:00:08.6]} 45. a4 {[%clk 0:01:35.9]} 45... Rxc4 {[%clk
0:00:08.7]} 46. Kg3 {[%clk 0:01:35.2]} 46... Rxa4 {[%clk 0:00:07.9]} 47. Rh2
{[%clk 0:01:34.2]} 47... Bf4+ {[%clk 0:00:08.1]} 48. Kh4 {[%clk 0:01:33.7]}
48... Bxh2 {[%clk 0:00:09]} 49. g5 {[%clk 0:01:33.4]} 49... hxg5+ {[%clk
0:00:09]} 50. Kh5 {[%clk 0:01:33.5]} 50... Bf4 {[%clk 0:00:09.3]} 51. Nh6+
{[%clk 0:01:33.6]} 51... Ke6 {[%clk 0:00:09]} 52. Kg6 {[%clk 0:01:33.6]} 52...
Rc1 {[%clk 0:00:09.1]} 53. Nf5 {[%clk 0:01:34.1]} 53... b5 {[%clk 0:00:07.8]}
54. Ng7+ {[%clk 0:01:33.6]} 54... Kd6 {[%clk 0:00:08.3]} 55. Ne8+ {[%clk
0:01:33.9]} 55... Kc5 {[%clk 0:00:08.4]} 56. Nxf6 {[%clk 0:01:34.5]} 56... b4
{[%clk 0:00:08.4]} 57. Nd7+ {[%clk 0:01:34.6]} 57... Kc4 {[%clk 0:00:08.5]} 58.
Nb6+ {[%clk 0:01:35.5]} 58... Kb5 {[%clk 0:00:08.9]} 59. Nd5 {[%clk 0:01:36.3]}
59... b3 {[%clk 0:00:08.9]} 60. Nc7+ {[%clk 0:01:37.2]} 60... Kc4 {[%clk
0:00:08.8]} 61. Kf6 {[%clk 0:01:35.8]} 61... b2 {[%clk 0:00:08.8]} 62. Ne6
{[%clk 0:01:34.5]} 62... b1=Q {[%clk 0:00:08.6]} 63. Kf5 {[%clk 0:01:35.1]}
63... Qd3 {[%clk 0:00:07.7]} 64. Nd8 {[%clk 0:01:35.1]} 64... Qxf3 {[%clk
0:00:07.4]} 65. Ke6 {[%clk 0:01:35.6]} 65... Qxe4 {[%clk 0:00:06.4]} 66. Nb7
{[%clk 0:01:36.2]} 66... Qxb7 {[%clk 0:00:05.6]} 67. Kd6 {[%clk 0:01:36.7]}
67... g4 {[%clk 0:00:05.5]} 0-1